bitfinex-derivatives/quotes_BTCF0:USTF0_20250216
["timestamp","ask_amount","ask_price","bid_price","bid_amount"]
[1739691547778,0.25511698,97444.0,97443.0,0.05144]
[1739691547975,0.97671698,97444.0,97443.0,0.05144]
[1739691548279,0.9268158,97444.0,97443.0,0.05144]
[1739691551775,1.08047615,97444.0,97443.0,0.05144]
[1739691551978,1.08047615,97444.0,97443.0,0.2566579]
[1739691552176,0.35887615,97444.0,97443.0,0.2566579]
[1739691552384,1.08047615,97444.0,97443.0,0.2566579]
[1739691553582,1.08047615,97444.0,97443.0,0.27269954]
[1739691562785,0.9268158,97444.0,97443.0,0.2566579]
[1739691562987,0.9268158,97444.0,97443.0,0.27269954]
[1739691566985,0.9268158,97444.0,97443.0,0.27269879]
[1739691567588,0.9268158,97444.0,97443.0,0.29836422]
[1739691568908,0.9268158,97444.0,97443.0,0.29836517]
[1739691569587,0.9268158,97444.0,97443.0,0.27269916]
[1739691572600,0.9268158,97444.0,97443.0,0.2566579]
[1739691574693,0.9268158,97444.0,97443.0,0.27269916]
[1739691575400,0.9268158,97444.0,97443.0,0.2566579]
[1739691575601,0.9268158,97444.0,97443.0,0.27269916]
[1739691577601,0.9268158,97444.0,97443.0,0.2566579]
[1739691583208,0.2052158,97444.0,97443.0,0.2566579]
[1739691583505,0.5660158,97444.0,97443.0,0.2566579]
[1739691585294,0.15366035,97449.0,97443.0,0.05144]
[1739691585601,0.15366035,97449.0,97448.0,0.2052074]
[1739691586909,0.00015401,97453.0,97448.0,0.05036]
[1739691587110,0.00015401,97453.0,97452.0,0.565999]
[1739691587608,0.00015401,97453.0,97452.0,0.205199]
[1739691588207,0.00015401,97453.0,97452.0,0.206199]
[1739691588412,0.00015401,97453.0,97452.0,0.207199]
[1739691595623,0.20535091,97453.0,97452.0,0.207199]
[1739691599015,0.56615091,97453.0,97452.0,0.002]
[1739691604021,0.56615091,97453.0,97452.0,0.0102]
[1739691605227,0.56615091,97453.0,97452.0,0.0184]
[1739691610130,0.56615091,97453.0,97452.0,0.0267]
[1739691611444,0.72670091,97453.0,97452.0,0.0267]
[1739691613641,0.52150401,97453.0,97428.0,0.2394881]
[1739691613946,0.5660411,97432.0,97430.0,0.05285502]
[1739691614355,0.5660411,97432.0,97428.0,0.2394881]
[1739691614955,0.5660411,97432.0,97431.0,0.04222401]
[1739691615338,0.5660411,97432.0,97431.0,0.04322401]
[1739691615842,0.5660411,97432.0,97431.0,0.04422401]
[1739691616552,0.5764215,97432.0,97431.0,0.04222401]
[1739691616752,0.5774215,97432.0,97431.0,0.04222401]
[1739691617048,0.5774215,97432.0,97431.0,0.24746721]
[1739691620949,0.5774215,97432.0,97431.0,0.04222401]
[1739691635680,0.2166215,97432.0,97431.0,0.04222401]
[1739691635882,0.5774215,97432.0,97431.0,0.04222401]
[1739691636183,0.2166215,97432.0,97431.0,0.04222401]
[1739691636478,0.5774215,97432.0,97431.0,0.04222401]
[1739691637273,0.2166215,97432.0,97431.0,0.04222401]
[1739691637476,0.5774215,97432.0,97431.0,0.04222401]
[1739691653796,0.5774215,97432.0,97431.0,0.24746721]
[1739691672723,0.2166215,97432.0,97431.0,0.24746721]
[1739691672917,0.5774215,97432.0,97431.0,0.24746721]
[1739691673615,0.2166215,97432.0,97431.0,0.24746721]
[1739691673815,0.5774215,97432.0,97431.0,0.24746721]
[1739691679613,0.2166215,97432.0,97431.0,0.24746721]
[1739691679824,0.5774215,97432.0,97431.0,0.24746721]
[1739691686426,0.5774215,97432.0,97431.0,0.04222401]
[1739691699423,0.2166215,97432.0,97431.0,0.04222401]
[1739691699626,0.5774215,97432.0,97431.0,0.04222401]
[1739691700334,0.5774215,97432.0,97431.0,0.24746731]
[1739691708740,0.5774215,97432.0,97431.0,0.04222401]
[1739691711430,0.5774215,97432.0,97431.0,0.24746731]
[1739691732455,0.2166215,97432.0,97431.0,0.24746731]
[1739691732658,0.5774215,97432.0,97431.0,0.24746731]
[1739691733445,0.2166215,97432.0,97431.0,0.24746731]
[1739691733659,0.5774215,97432.0,97431.0,0.24746731]
[1739691735255,0.2166215,97432.0,97431.0,0.24746731]
[1739691735449,0.5774215,97432.0,97431.0,0.24746731]
[1739691739558,0.2166215,97432.0,97431.0,0.24746731]
[1739691739759,0.5774215,97432.0,97431.0,0.24746731]
[1739691741165,0.5774215,97432.0,97431.0,0.04222401]
[1739691744365,0.6075215,97432.0,97431.0,0.04222401]
[1739691744666,0.2467215,97432.0,97431.0,0.04222401]
[1739691745062,0.6075215,97432.0,97431.0,0.04222401]
[1739691746855,0.2467215,97432.0,97431.0,0.04222401]
[1739691747056,0.6075215,97432.0,97431.0,0.04222401]
[1739691760876,0.2467215,97432.0,97431.0,0.04222401]
[1739691761076,0.6075215,97432.0,97431.0,0.04222401]
[1739691764171,0.2467215,97432.0,97431.0,0.04222401]
[1739691764380,0.6075215,97432.0,97431.0,0.04222401]
[1739691769384,0.2467215,97432.0,97431.0,0.04222401]
[1739691769585,0.6075215,97432.0,97431.0,0.04222401]
[1739691780789,0.2052475,97429.0,97428.0,0.2052495]
[1739691781796,0.5660475,97429.0,97428.0,0.2052495]
[1739691781984,0.5670475,97429.0,97428.0,0.2252295]
[1739691782184,0.2062475,97429.0,97428.0,0.2252295]
[1739691782490,0.5670475,97429.0,97428.0,0.2252295]
[1739691790290,0.5670475,97429.0,97428.0,0.01998]
[1739691796891,0.2062475,97429.0,97428.0,0.01998]
[1739691797101,0.5670475,97429.0,97428.0,0.01998]
[1739691797893,0.2062475,97429.0,97428.0,0.01998]
[1739691798206,0.5670475,97429.0,97428.0,0.01998]
[1739691799704,0.2062475,97429.0,97428.0,0.01998]
[1739691800003,0.5670475,97429.0,97428.0,0.01998]
[1739691802401,0.2062475,97429.0,97428.0,0.01998]
[1739691802597,0.5670475,97429.0,97428.0,0.01998]
[1739691810307,0.2062475,97429.0,97428.0,0.01998]
[1739691810508,0.5670475,97429.0,97428.0,0.01998]
[1739691812207,0.2062475,97429.0,97428.0,0.01998]
[1739691812399,0.5670475,97429.0,97428.0,0.01998]
[1739691817408,0.2062475,97429.0,97428.0,0.01998]
[1739691817709,0.5670475,97429.0,97428.0,0.01998]
[1739691818414,0.2062475,97429.0,97428.0,0.01998]
[1739691818616,0.5670475,97429.0,97428.0,0.01998]
[1739691820617,0.2062475,97429.0,97428.0,0.01998]
[1739691820802,0.5670475,97429.0,97428.0,0.01998]
[1739691822803,0.2062475,97429.0,97428.0,0.01998]
[1739691823009,0.5670475,97429.0,97428.0,0.01998]
[1739691826712,0.2062475,97429.0,97428.0,0.01998]
[1739691826912,0.5670475,97429.0,97428.0,0.01998]
[1739691827808,0.2062475,97429.0,97428.0,0.01998]
[1739691828009,0.5670475,97429.0,97428.0,0.01998]
[1739691852436,0.2062475,97429.0,97428.0,0.01998]
[1739691852643,0.5670475,97429.0,97428.0,0.01998]
[1739691853339,0.2062475,97429.0,97428.0,0.01998]
[1739691853537,0.5670475,97429.0,97428.0,0.01998]
[1739691853938,0.2062475,97429.0,97428.0,0.01998]
[1739691854139,0.5670475,97429.0,97428.0,0.01998]
[1739691855643,0.2062475,97429.0,97428.0,0.01998]
[1739691855843,0.5670475,97429.0,97428.0,0.01998]
[1739691859236,0.2062475,97429.0,97428.0,0.01998]
[1739691859436,0.5670475,97429.0,97428.0,0.01998]
[1739691865644,0.2062475,97429.0,97428.0,0.01998]
[1739691865844,0.5670475,97429.0,97428.0,0.01998]
[1739691867541,0.2062475,97429.0,97428.0,0.01998]
[1739691867850,0.5670475,97429.0,97428.0,0.01998]
[1739691868754,0.2062475,97429.0,97428.0,0.01998]
[1739691868953,0.5670475,97429.0,97428.0,0.01998]
[1739691870547,0.2062475,97429.0,97428.0,0.01998]
[1739691870953,0.5670475,97429.0,97428.0,0.01998]
[1739691871854,0.5670475,97429.0,97419.0,1e-08]
[1739691871855,0.2052665,97420.0,97419.0,1e-08]
[1739691872056,0.5660665,97420.0,97419.0,1e-08]
[1739691873159,0.5660665,97420.0,97419.0,0.01535001]
[1739691873460,0.5660665,97420.0,97419.0,0.01735001]
[1739691873656,0.9268665,97420.0,97419.0,0.01735001]
[1739691905673,1.08004807,97420.0,97419.0,0.01735001]
[1739691909574,0.87478157,97420.0,97407.0,0.0312]
[1739691909779,0.5660917,97408.0,97407.0,0.0312]
[1739691910767,0.5660917,97408.0,97407.0,0.0382]
[1739691910966,0.5660917,97408.0,97407.0,0.04641]
[1739691911370,0.5660917,97408.0,97407.0,0.01521]
[1739691911574,0.5660917,97408.0,97407.0,0.02221]
[1739691913572,0.57616957,97408.0,97407.0,0.02221]
[1739691916474,0.21536957,97408.0,97407.0,0.02221]
[1739691916674,0.57616957,97408.0,97407.0,0.02221]
[1739691921581,0.21536957,97408.0,97407.0,0.02221]
[1739691921772,0.57616957,97408.0,97407.0,0.02221]
[1739691936081,0.2053023,97403.0,97402.0,0.0304]
[1739691937183,0.2053023,97403.0,97402.0,0.04561]
[1739691938487,0.2063023,97403.0,97402.0,0.05261]
[1739691941181,0.2063023,97403.0,97402.0,0.02221]
[1739691949097,0.5671023,97403.0,97402.0,0.02221]
[1739691965315,0.5671023,97403.0,97402.0,0.2275144]
[1739691968815,0.5671023,97403.0,97402.0,0.02221]
[1739691984221,0.2063023,97403.0,97402.0,0.02221]
[1739691984425,0.5671023,97403.0,97402.0,0.02221]
[1739691984939,0.2063023,97403.0,97402.0,0.02221]
[1739691985124,0.5671023,97403.0,97402.0,0.02221]
[1739691988232,0.2063023,97403.0,97402.0,0.02221]
[1739691988429,0.5671023,97403.0,97402.0,0.02221]
[1739691999430,0.5661023,97403.0,97402.0,0.01121]
[1739692002237,0.2053023,97403.0,97402.0,0.01121]
[1739692002440,0.5661023,97403.0,97402.0,0.01121]
[1739692033866,0.3608,97403.0,97402.0,0.01121]
[1739692034075,0.15318157,97407.0,97402.0,0.01121]
[1739692034076,0.15318157,97407.0,97406.0,0.205296]
[1739692035667,0.15318157,97407.0,97406.0,0.213506]
[1739692036375,0.3608,97408.0,97407.0,0.2052938]
[1739692037774,0.3618,97408.0,97407.0,0.2052938]
[1739692048166,0.001,97408.0,97407.0,0.2052938]
[1739692065797,0.001,97408.0,97407.0,0.2135038]
[1739692147971,0.3608,97413.0,97412.0,0.2052833]
[1739692149272,0.3628,97413.0,97412.0,0.2052833]
[1739692149466,0.3648,97413.0,97412.0,0.2052833]
[1739692149661,0.3648,97413.0,97412.0,0.2134933]
[1739692165888,0.5700812,97413.0,97412.0,0.00821]
[1739692194303,0.2092812,97413.0,97412.0,0.00821]
[1739692194499,0.5700812,97413.0,97412.0,0.00821]
[1739692198508,0.2092812,97413.0,97412.0,0.00821]
[1739692198709,0.5700812,97413.0,97412.0,0.00821]
[1739692201317,0.3648,97413.0,97400.0,0.062]
[1739692201509,0.5661065,97401.0,97400.0,0.062]
[1739692201812,0.5661065,97401.0,97400.0,0.03]
[1739692202503,0.5661065,97401.0,97400.0,0.03166]
[1739692202702,0.5661065,97401.0,97400.0,0.03266]
[1739692205017,0.5661065,97401.0,97400.0,0.03466]
[1739692212022,0.2053065,97401.0,97400.0,0.03466]
[1739692212426,0.5661065,97401.0,97400.0,0.03466]
[1739692219627,0.5661065,97401.0,97400.0,0.00466]
[1739692240236,0.5661065,97401.0,97400.0,0.2099686]
[1739692251946,0.3608,97401.0,97400.0,0.2099686]
[1739692264855,0.2355024,97403.0,97400.0,0.00466]
[1739692265256,0.2355024,97403.0,97402.0,0.2053044]
[1739692266259,0.2355024,97403.0,97402.0,0.2069644]
[1739692266654,0.2695925,97408.0,97406.0,0.2052939]
[1739692268253,0.2705925,97408.0,97406.0,0.2052939]
[1739692269453,0.2705925,97408.0,97407.0,0.2052938]
[1739692275054,0.0653,97408.0,97402.0,0.00166]
[1739692275256,0.2052947,97407.0,97402.0,0.2069639]
[1739692277866,0.2052947,97407.0,97403.0,0.2053016]
[1739692279470,0.205296,97406.0,97403.0,0.2053016]
[1739692280661,0.205296,97406.0,97403.0,0.2063016]
[1739692281562,0.205296,97406.0,97404.0,0.00166]
[1739692283463,0.205296,97406.0,97404.0,0.00266]
[1739692287572,0.2052981,97405.0,97404.0,0.00266]
[1739692288868,0.2052981,97405.0,97404.0,0.00166]
[1739692289072,0.2052981,97405.0,97404.0,0.00266]
[1739692315880,0.5660981,97405.0,97404.0,0.00266]
[1739692339603,0.2052981,97405.0,97404.0,0.00266]
[1739692340009,0.5660981,97405.0,97404.0,0.00266]
[1739692341014,0.2052981,97405.0,97404.0,0.00266]
[1739692341214,0.5660981,97405.0,97404.0,0.00266]
[1739692341715,0.2052981,97405.0,97404.0,0.00266]
[1739692341910,0.5660981,97405.0,97404.0,0.00266]
[1739692365230,0.2052981,97405.0,97404.0,0.00266]
[1739692365430,0.5660981,97405.0,97404.0,0.00266]
[1739692381254,0.2052981,97405.0,97404.0,0.00266]
[1739692381450,0.5660981,97405.0,97404.0,0.00266]
[1739692382651,0.2052981,97405.0,97404.0,0.00266]
[1739692382855,0.5660981,97405.0,97404.0,0.00266]
[1739692398570,0.2053086,97400.0,97399.0,0.0321]
[1739692398873,0.2053107,97399.0,97398.0,0.00015392]
[1739692399073,0.2357107,97399.0,97398.0,0.00015392]
[1739692401671,0.2357107,97399.0,97398.0,0.00315392]
[1739692402067,0.2357107,97399.0,97398.0,0.00615392]
[1739692406378,0.5965107,97399.0,97398.0,0.00615392]
[1739692416784,0.2357107,97399.0,97398.0,0.00615392]
[1739692416978,0.5965107,97399.0,97398.0,0.00615392]
[1739692417281,0.2053275,97391.0,97390.0,0.0311]
[1739692417483,0.5661275,97391.0,97390.0,0.0311]
[1739692418775,0.5671275,97391.0,97390.0,0.0371]
[1739692419278,0.52235,97391.0,97380.0,0.00128]
[1739692419480,0.2053697,97371.0,97370.0,0.0327]
[1739692419679,0.3608,97371.0,97368.0,0.01008122]
[1739692419875,0.0314,97370.0,97362.0,0.0327]
[1739692420077,0.3608,97363.0,97362.0,0.0327]
[1739692420273,0.5661866,97363.0,97362.0,0.0327]
[1739692420879,0.5661866,97363.0,97362.0,0.2380887]
[1739692421080,0.5661866,97363.0,97362.0,0.2410887]
[1739692421274,0.5661866,97363.0,97362.0,0.003]
[1739692422783,0.5671866,97363.0,97362.0,0.003]
[1739692423483,0.2054056,97354.0,97353.0,0.2054076]
[1739692425086,0.2064056,97354.0,97353.0,0.2114076]
[1739692425484,0.2074056,97354.0,97353.0,0.2114076]
[1739692427292,0.002,97354.0,97353.0,0.2114076]
[1739692450504,0.0333,97354.0,97353.0,0.2114076]
[1739692451502,0.2387056,97354.0,97353.0,0.2114076]
[1739692464523,0.002,97354.0,97353.0,0.2114076]
[1739692464724,0.3608,97366.0,97365.0,0.2053824]
[1739692465021,0.37085657,97366.0,97365.0,0.2053824]
[1739692465219,0.2053925,97361.0,97360.0,0.2053846]
[1739692466715,0.2063925,97361.0,97360.0,0.2103846]
[1739692469026,0.2073925,97361.0,97360.0,0.2103846]
[1739692472526,0.002,97361.0,97360.0,0.2103846]
[1739692483247,0.2073908,97361.0,97360.0,0.2103846]
[1739692483438,0.002,97361.0,97360.0,0.2103846]
[1739692493156,0.2073908,97361.0,97360.0,0.2103846]
[1739692509661,0.2073908,97361.0,97360.0,0.005]
[1739692513773,0.5681908,97361.0,97360.0,0.005]
[1739692518081,0.82335,97361.0,97320.0,0.43134534]
[1739692518382,0.2054752,97321.0,97320.0,0.43134534]
[1739692518881,0.3021752,97321.0,97320.0,0.43134534]
[1739692519475,0.10681823,97321.0,97320.0,0.43134534]
[1739692519672,0.10681823,97321.0,97320.0,0.43334534]
[1739692520379,0.04221823,97321.0,97320.0,0.18384534]
[1739692520579,0.01011823,97321.0,97320.0,0.24624534]
[1739692520880,0.001,97321.0,97320.0,0.24824534]
[1739692521272,0.001,97321.0,97319.0,0.61681135]
[1739692521273,0.21772776,97321.0,97319.0,0.61681135]
[1739692521472,0.52135,97320.0,97300.0,0.1]
[1739692521668,0.2055259,97297.0,97296.0,0.12530773]
[1739692521872,0.2055259,97297.0,97296.0,0.12454773]
[1739692522178,0.01,97296.0,97290.0,0.28998376]
[1739692522371,0.5663386,97291.0,97290.0,0.07821497]
[1739692522575,0.3608,97291.0,97289.0,0.3688876]
[1739692523282,0.3608,97291.0,97289.0,0.6771676]
[1739692523475,0.3678,97291.0,97290.0,0.2055407]
[1739692523777,0.3678,97291.0,97290.0,0.6165807]
[1739692524368,0.3748,97291.0,97290.0,0.6165807]
[1739692524881,0.3748,97291.0,97290.0,0.6494807]
[1739692525082,0.3678,97291.0,97290.0,0.6494807]
[1739692525284,0.3748,97291.0,97290.0,0.6494807]
[1739692531686,0.3748,97291.0,97290.0,0.43356167]
[1739692531887,0.3748,97291.0,97290.0,0.63910237]
[1739692532483,0.3748,97291.0,97290.0,0.42318187]
[1739692534194,0.3748,97291.0,97290.0,0.26895295]
[1739692540492,0.3748,97291.0,97282.0,0.0513894]
[1739692540696,0.3748,97291.0,97290.0,0.2055407]
[1739692541590,0.3678,97291.0,97290.0,0.2055407]
[1739692541793,0.43401415,97291.0,97290.0,0.2055407]
[1739692542187,0.42701415,97291.0,97290.0,0.2055407]
[1739692542385,0.43401415,97291.0,97290.0,0.2055407]
[1739692542794,0.63955275,97291.0,97290.0,0.2055407]
[1739692543486,0.63955275,97291.0,97281.0,0.0326]
[1739692543487,0.43401415,97291.0,97281.0,0.0326]
[1739692543691,0.48729206,97291.0,97281.0,0.0326]
[1739692543895,0.2055576,97282.0,97281.0,0.0326]
[1739692545691,0.2125576,97282.0,97281.0,0.0326]
[1739692546499,0.205566,97278.0,97277.0,0.0653]
[1739692547901,0.212566,97278.0,97277.0,0.0653]
[1739692548408,0.22290498,97278.0,97277.0,0.0653]
[1739692548604,0.22990498,97278.0,97277.0,0.0653]
[1739692548805,0.72113828,97278.0,97261.0,0.2056006]
[1739692548994,0.5664002,97262.0,97261.0,0.205602]
[1739692551206,0.5724002,97262.0,97261.0,0.205602]
[1739692552005,0.3668,97262.0,97241.0,0.00154256]
[1739692552205,0.3608,97252.0,97251.0,0.2056231]
[1739692552596,0.2056156,97255.0,97254.0,0.2056168]
[1739692552797,0.90412381,97262.0,97247.0,0.3608]
[1739692553002,0.9035638,97262.0,97252.0,0.10828696]
[1739692553302,0.9035638,97262.0,97253.0,0.0308]
[1739692554498,0.8985638,97262.0,97253.0,0.0308]
[1739692554705,0.3608,97262.0,97261.0,0.205602]
[1739692554891,0.3668,97262.0,97261.0,0.205602]
[1739692555290,0.3718,97262.0,97261.0,0.205602]
[1739692559603,0.42833535,97262.0,97261.0,0.205602]
[1739692562608,0.42833535,97262.0,97254.0,0.0329]
[1739692563500,0.42833535,97262.0,97261.0,0.205602]
[1739692563700,0.42233535,97262.0,97261.0,0.205602]
[1739692563907,0.42733535,97262.0,97261.0,0.205602]
[1739692564506,0.42233535,97262.0,97261.0,0.205602]
[1739692564805,0.42733535,97262.0,97261.0,0.205602]
[1739692570310,0.3708,97262.0,97261.0,0.205602]
[1739692572213,0.01,97262.0,97261.0,0.205602]
[1739692578516,0.01038119,97280.0,97279.0,0.2055639]
[1739692578711,0.15329247,97285.0,97283.0,0.2055555]
[1739692579826,0.37105496,97284.0,97283.0,0.2055555]
[1739692580023,0.37805496,97284.0,97283.0,0.2055555]
[1739692580416,0.38505496,97284.0,97283.0,0.2055555]
[1739692589917,0.2055616,97281.0,97278.0,0.2055658]
[1739692590120,0.38505496,97284.0,97274.0,0.00015417]
[1739692590121,0.0323,97283.0,97274.0,0.00015417]
[1739692590432,0.3608,97276.0,97275.0,0.2055723]
[1739692592124,0.3678,97276.0,97275.0,0.2055723]
[1739692592319,0.3748,97276.0,97275.0,0.2055723]
[1739692592529,0.580371,97276.0,97274.0,0.00015417]
[1739692593832,0.3748,97276.0,97274.0,0.00015417]
[1739692595637,0.014,97276.0,97274.0,0.00015417]
[1739692595935,0.3748,97276.0,97274.0,0.00015417]
[1739692596236,0.3748,97276.0,97274.0,0.20572777]
[1739692601729,0.2055724,97275.0,97274.0,0.20572777]
[1739692603135,0.2125724,97275.0,97274.0,0.20572777]
[1739692603336,0.007,97275.0,97274.0,0.20572777]
[1739692604626,0.014,97275.0,97274.0,0.20572777]
[1739692609639,0.2195724,97275.0,97274.0,0.20572777]
[1739692610440,0.2195724,97275.0,97274.0,0.00015417]
[1739692611434,0.2195724,97275.0,97271.0,0.03]
[1739692611435,0.2055808,97271.0,97270.0,0.0316]
[1739692611934,0.2056146,97255.0,97242.0,0.89588]
[1739692612138,0.9272146,97255.0,97245.0,0.2056346]
[1739692612352,0.9272146,97255.0,97244.0,0.0306]
[1739692612539,0.9272146,97255.0,97245.0,0.05328209]
[1739692612846,0.9272146,97255.0,97252.0,0.2056209]
[1739692613047,0.9374395,97255.0,97253.0,0.0303]
[1739692613531,0.9374395,97255.0,97254.0,0.03474215]
[1739692613945,0.9374395,97255.0,97254.0,0.0332]
[1739692614242,0.9272146,97255.0,97254.0,0.0332]
[1739692614439,0.9312146,97255.0,97254.0,0.0332]
[1739692615138,0.94137485,97255.0,97254.0,0.0332]
[1739692615529,0.94537485,97255.0,97254.0,0.0332]
[1739692616033,0.94437485,97255.0,97254.0,0.0332]
[1739692616238,0.73876025,97255.0,97244.0,0.0306]
[1739692616431,0.0636,97254.0,97246.0,0.0324]
[1739692616642,0.5664315,97247.0,97246.0,0.0324]
[1739692618046,0.5674315,97247.0,97246.0,0.0324]
[1739692619345,0.3618,97247.0,97246.0,0.0324]
[1739692619944,0.3628,97247.0,97246.0,0.0324]
[1739692630649,0.002,97247.0,97246.0,0.0324]
[1739692631053,0.3608,97257.0,97256.0,0.2056125]
[1739692632454,0.3638,97257.0,97256.0,0.2056125]
[1739692632759,0.3658,97257.0,97256.0,0.2056125]
[1739692635659,0.3658,97257.0,97252.0,0.2056204]
[1739692638450,0.3658,97257.0,97253.0,0.2056186]
[1739692639464,0.3628,97257.0,97253.0,0.2056186]
[1739692639766,0.3638,97257.0,97253.0,0.2056186]
[1739692640059,0.3658,97257.0,97253.0,0.2056186]
[1739692641062,0.3658,97257.0,97248.0,0.0937]
[1739692641250,0.3658,97257.0,97255.0,0.2056125]
[1739692641457,0.3658,97257.0,97256.0,0.2056125]
[1739692641859,0.3658,97257.0,97251.0,0.2056226]
[1739692642061,0.3658,97257.0,97253.0,0.2056188]
[1739692643061,0.3658,97257.0,97255.0,0.205614]
[1739692643447,0.3658,97257.0,97256.0,0.2056125]
[1739692645661,0.3628,97257.0,97256.0,0.2056125]
[1739692645858,0.3658,97257.0,97256.0,0.2056125]
[1739692646253,0.3678,97257.0,97256.0,0.2056125]
[1739692646453,0.3648,97257.0,97256.0,0.2056125]
[1739692646648,0.3638,97257.0,97256.0,0.2056125]
[1739692646953,0.3658,97257.0,97256.0,0.2056125]
[1739692664372,0.3658,97257.0,97256.0,0.21562271]
[1739692665575,0.3658,97257.0,97251.0,0.2056225]
[1739692665775,0.3608,97253.0,97248.0,0.0937]
[1739692666071,0.3608,97253.0,97248.0,0.0306]
[1739692666278,0.0637,97252.0,97248.0,0.0306]
[1739692666975,0.0637,97252.0,97248.0,0.236229]
[1739692667371,0.0637,97252.0,97248.0,0.0306]
[1739692668077,0.0647,97252.0,97248.0,0.0306]
[1739692668579,0.0657,97252.0,97248.0,0.0306]
[1739692678679,0.3608,97249.0,97248.0,0.0306]
[1739692688678,0.3608,97249.0,97248.0,0.0626]
[1739692689982,0.3608,97249.0,97248.0,0.2682293]
[1739692691385,0.18349247,97265.0,97248.0,0.2682293]
[1739692691386,0.3608,97258.0,97248.0,0.3626]
[1739692691582,0.3608,97258.0,97257.0,0.2056103]
[1739692692790,0.3638,97258.0,97257.0,0.2056103]
[1739692693084,0.3668,97258.0,97257.0,0.2056103]
[1739692694876,0.006,97258.0,97257.0,0.2056103]
[1739692708290,0.00015417,97264.0,97263.0,0.2055976]
[1739692709398,0.00515417,97264.0,97263.0,0.2055976]
[1739692710487,0.00915417,97264.0,97263.0,0.2055976]
[1739692720912,0.00092863,97264.0,97263.0,0.2055976]
[1739692740133,0.00015417,97273.0,97259.0,0.0938]
[1739692740331,0.00015417,97273.0,97272.0,0.2055786]
[1739692741625,0.00015417,97273.0,97272.0,0.21581618]
[1739692741828,0.00715417,97273.0,97272.0,0.21581618]
[1739692742534,0.00015417,97273.0,97272.0,0.21581618]
[1739692742835,0.01315417,97273.0,97272.0,0.21781618]
[1739692775157,0.01315417,97273.0,97272.0,0.23388166]
[1739692778965,0.01315417,97273.0,97272.0,0.23388165]
[1739692786366,0.01315417,97273.0,97272.0,0.21781618]
[1739692787463,0.01315417,97273.0,97272.0,0.23388165]
[1739692788866,0.01315417,97273.0,97272.0,0.23388166]
[1739692790271,0.01315417,97273.0,97272.0,0.21781618]
[1739692791470,0.01315417,97273.0,97272.0,0.23388165]
[1739692794771,0.01315417,97273.0,97272.0,0.23388159]
[1739692800077,0.01315417,97273.0,97272.0,0.21781618]
[1739692800577,0.01315417,97273.0,97272.0,0.23388146]
[1739692802883,0.01315417,97273.0,97272.0,0.21781618]
[1739692804475,0.01315417,97273.0,97272.0,0.25345347]
[1739692804675,0.01315417,97273.0,97272.0,0.21781618]
[1739692804876,0.00815417,97273.0,97272.0,0.22381618]
[1739692805174,0.00115417,97273.0,97272.0,0.22581618]
[1739692805579,0.01146886,97273.0,97272.0,0.22581618]
[1739692805789,0.00115417,97273.0,97272.0,0.22281618]
[1739692806074,0.00215417,97273.0,97272.0,0.22981618]
[1739692808067,0.00015417,97273.0,97272.0,0.21581618]
[1739692808267,0.00215417,97273.0,97272.0,0.22981618]
[1739692808783,0.00115417,97273.0,97272.0,0.22281618]
[1739692808979,0.00115417,97273.0,97272.0,0.22681618]
[1739692809482,0.00115417,97273.0,97272.0,0.22181618]
[1739692809670,0.00115417,97273.0,97272.0,0.22581618]
[1739692809875,0.00015417,97273.0,97272.0,0.22481618]
[1739692811678,0.00015417,97273.0,97272.0,0.2145786]
[1739692811881,0.00015417,97273.0,97272.0,0.22477506]
[1739692812082,0.00015417,97273.0,97272.0,0.2145786]
[1739692812978,0.00015417,97273.0,97272.0,0.2095786]
[1739692814685,0.00015417,97273.0,97272.0,0.2125786]
[1739692814888,0.00015417,97273.0,97272.0,0.2115786]
[1739692815485,0.00015417,97273.0,97272.0,0.2085786]
[1739692815684,0.00015417,97273.0,97272.0,0.22664441]
[1739692816083,0.00015417,97273.0,97272.0,0.22364441]
[1739692816277,0.00015417,97273.0,97272.0,0.22464441]
[1739692817482,0.00015417,97273.0,97272.0,0.2226443]
[1739692817679,0.00015417,97273.0,97272.0,0.2085786]
[1739692822893,0.00015417,97273.0,97272.0,0.003]
[1739692823784,0.00015417,97273.0,97272.0,0.2085786]
[1739692823986,0.00115417,97273.0,97272.0,0.2065786]
[1739692824292,0.36195417,97273.0,97272.0,0.2065786]
[1739692824789,0.36095417,97273.0,97272.0,0.2147986]
[1739692824993,0.36095417,97273.0,97272.0,0.2137986]
[1739692825588,0.36195417,97273.0,97272.0,0.2137986]
[1739692825894,0.56753067,97273.0,97272.0,0.00729137]
[1739692826089,0.56653067,97273.0,97272.0,0.00729137]
[1739692826578,0.56753067,97273.0,97272.0,0.03299137]
[1739692826982,0.57772854,97273.0,97272.0,0.03299137]
[1739692827388,0.58172854,97273.0,97272.0,0.03299137]
[1739692828190,0.58572854,97273.0,97272.0,0.03299137]
[1739692828390,0.58472854,97273.0,97272.0,0.03299137]
[1739692828588,0.58072854,97273.0,97272.0,0.03299137]
[1739692828890,0.58472854,97273.0,97272.0,0.03299137]
[1739692829489,0.74127854,97273.0,97272.0,0.03299137]
[1739692829690,0.74527854,97273.0,97272.0,0.03299137]
[1739692829890,1.04527854,97273.0,97272.0,0.03299137]
[1739692830088,1.04627854,97273.0,97272.0,0.03299137]
[1739692837390,1.04627854,97273.0,97272.0,0.03732137]
[1739692840004,0.84070204,97273.0,97270.0,0.04112]
[1739692840203,0.2055807,97271.0,97270.0,0.04112]
[1739692840603,0.205604,97260.0,97259.0,0.13860199]
[1739692840805,0.566404,97260.0,97259.0,0.13860199]
[1739692841211,0.566404,97260.0,97259.0,0.14861199]
[1739692842707,0.566404,97260.0,97259.0,0.01001]
[1739692844010,0.726954,97260.0,97259.0,0.01001]
[1739692857733,0.726954,97260.0,97259.0,0.2156161]
[1739692862134,0.726954,97260.0,97259.0,0.2567361]
[1739692868135,0.726954,97260.0,97259.0,0.05113]
[1739692869648,0.88052859,97260.0,97259.0,0.05113]
[1739692870044,0.88052859,97260.0,97259.0,0.01001]
[1739692871248,0.83940859,97260.0,97259.0,0.01001]
[1739692872739,0.73583247,97260.0,97259.0,0.01001]
[1739692874650,1.09663247,97260.0,97259.0,0.01001]
[1739692875641,1.12813247,97260.0,97259.0,0.01001]
[1739692876744,1.31242198,97260.0,97259.0,0.01001]
[1739692879956,1.12813247,97260.0,97259.0,0.01001]
[1739692887859,0.2056082,97258.0,97256.0,0.18995077]
[1739692888057,0.93266848,97260.0,97258.0,0.2056082]
[1739692888262,0.93214847,97260.0,97259.0,0.0641]
[1739692889257,0.93214847,97260.0,97259.0,0.07232]
[1739692890356,0.93214847,97260.0,97259.0,0.088393]